[Event "Elite Hotels Open 2023"]
[Site "Elite Stadshotellet, Kungsgatan 6, Vaxjo, Sweden"]
[Date "2023.02.12"]
[Round "7.15"]
[White "Odell Johansson, Leo"]
[Black "Burwick, Malte"]
[Result "0-1"]
[TimeControl "15 minutes + 5 seconds per move from move one (Round 1 - 4) / 90 minutes + 30 seconds per move from move one (Round 5 - 8)"]
[WhiteFideId "1722727"]
[BlackFideId "1702475"]
[WhiteElo "1876"]
[BlackElo "2219"]

1. d4 {[%clk 01:30:58]} {[%emt 00:00:01]} Nf6 {[%clk 01:30:40]} {[%emt
00:00:20]} 2. Nf3 {[%clk 01:31:04]} {[%emt 00:00:23]} g6 {[%clk 01:30:06]}
{[%emt 00:01:05]} 3. e3 {[%clk 01:29:03]} {[%emt 00:02:31]} Bg7 {[%clk
01:30:24]} {[%emt 00:00:13]} 4. Be2 {[%clk 01:29:16]} {[%emt 00:00:16]} O-O
{[%clk 01:30:47]} {[%emt 00:00:07]} 5. O-O {[%clk 01:29:43]} {[%emt 00:00:04]}
d6 {[%clk 01:31:11]} {[%emt 00:00:06]} 6. b3 {[%clk 01:23:31]} {[%emt
00:06:41]} Nbd7 {[%clk 01:31:34]} {[%emt 00:00:07]} 7. Bb2 {[%clk 01:23:50]}
{[%emt 00:00:12]} e5 {[%clk 01:19:11]} {[%emt 00:12:53]} 8. dxe5 {[%clk
01:21:18]} {[%emt 00:03:02]} Ng4 {[%clk 01:19:34]} {[%emt 00:00:06]} 9. Nbd2
{[%clk 01:18:26]} {[%emt 00:03:22]} Ngxe5 {[%clk 01:16:09]} {[%emt 00:03:56]}
10. Qc1 {[%clk 01:06:21]} {[%emt 00:12:35]} Re8 {[%clk 01:15:45]} {[%emt
00:00:55]} 11. Rd1 {[%clk 01:04:48]} {[%emt 00:02:03]} Nxf3+ {[%clk 01:05:46]}
{[%emt 00:10:28]} 12. Nxf3 {[%clk 01:04:20]} {[%emt 00:00:57]} Nf6 {[%clk
01:04:19]} {[%emt 00:01:57]} 13. h3 {[%clk 01:02:17]} {[%emt 00:02:33]} Qe7
{[%clk 01:04:18]} {[%emt 00:00:31]} 14. Nd4 {[%clk 00:55:59]} {[%emt 00:06:49]}
Ne4 {[%clk 00:58:25]} {[%emt 00:06:23]} 15. Bf3 {[%clk 00:38:28]} {[%emt
00:18:00]} Ng5 {[%clk 00:54:02]} {[%emt 00:04:53]} 16. Be2 {[%clk 00:29:24]}
{[%emt 00:09:34]} Bxh3 {[%clk 00:25:37]} {[%emt 00:28:56]} 17. gxh3 {[%clk
00:15:19]} {[%emt 00:14:34]} Nxh3+ {[%clk 00:26:00]} {[%emt 00:00:07]} 18. Kg2
{[%clk 00:15:32]} {[%emt 00:00:16]} Qh4 {[%clk 00:26:19]} {[%emt 00:00:13]} 19.
Rf1 {[%clk 00:09:39]} {[%emt 00:06:22]} Re4 {[%clk 00:24:48]} {[%emt 00:02:02]}
20. f4 {[%clk 00:09:04]} {[%emt 00:01:05]} Rae8 {[%clk 00:20:45]} {[%emt
00:04:32]} 21. Qe1 {[%clk 00:08:24]} {[%emt 00:01:10]} Qh6 {[%clk 00:17:39]}
{[%emt 00:03:36]} 22. Rf3 {[%clk 00:04:51]} {[%emt 00:04:04]} Rxe3 {[%clk
00:17:08]} {[%emt 00:01:00]} 23. Qg3 {[%clk 00:05:00]} {[%emt 00:00:22]} Bxd4
{[%clk 00:06:10]} {[%emt 00:11:28]} 24. Bxd4 {[%clk 00:05:28]} Rxe2+ {[%clk
00:06:33]} {[%emt 00:00:09]} 25. Kf1 {[%clk 00:05:39]} {[%emt 00:00:18]} R2e4
{[%clk 00:06:57]} {[%emt 00:00:06]} 26. Be3 {[%clk 00:02:14]} {[%emt 00:03:54]}
Rxe3 {[%clk 00:04:08]} {[%emt 00:03:19]} 27. Rxe3 {[%clk 00:02:38]} {[%emt
00:00:06]} Rxe3 {[%clk 00:04:27]} {[%emt 00:00:11]} 28. Qxe3 {[%clk 00:03:06]}
{[%emt 00:00:02]} Qxf4+ {[%clk 00:04:28]} {[%emt 00:00:29]} 29. Qxf4 {[%clk
00:03:20]} {[%emt 00:00:16]} Nxf4 {[%clk 00:04:48]} {[%emt 00:00:11]} 30. Re1
{[%clk 00:03:15]} {[%emt 00:00:33]} a5 {[%clk 00:04:29]} {[%emt 00:00:51]} 31.
Re4 {[%clk 00:01:58]} {[%emt 00:01:47]} Ne6 {[%clk 00:04:48]} {[%emt 00:00:10]}
32. c3 {[%clk 00:02:17]} {[%emt 00:00:12]} Kf8 {[%clk 00:02:32]} {[%emt
00:02:46]} 33. b4 {[%clk 00:02:42]} {[%emt 00:00:04]} axb4 {[%clk 00:02:14]}
{[%emt 00:00:48]} 34. cxb4 {[%clk 00:03:10]} {[%emt 00:00:02]} b5 {[%clk
00:01:48]} {[%emt 00:00:56]} 35. Re3 {[%clk 00:02:15]} {[%emt 00:01:25]} Ke7
{[%clk 00:02:05]} {[%emt 00:00:13]} 36. Ra3 {[%clk 00:01:14]} {[%emt 00:01:32]}
h5 {[%clk 00:02:01]} {[%emt 00:00:34]} 37. Ra7 {[%clk 00:00:59]} {[%emt
00:00:44]} Kd7 {[%clk 00:02:22]} {[%emt 00:00:10]} 38. a4 {[%clk 00:00:54]}
{[%emt 00:00:36]} bxa4 {[%clk 00:02:45]} {[%emt 00:00:07]} 39. Rxa4 {[%clk
00:01:21]} {[%emt 00:00:02]} Kc6 {[%clk 00:03:01]} {[%emt 00:00:13]} 40. Ra8
{[%clk 00:01:30]} {[%emt 00:00:21]} Kb5 {[%clk 00:02:56]} {[%emt 00:00:35]} 41.
Rb8+ {[%clk 00:01:57]} {[%emt 00:00:03]} Kc4 {[%clk 00:03:20]} {[%emt
00:00:06]} 42. Kf2 {[%clk 00:02:14]} {[%emt 00:00:14]} d5 {[%clk 00:02:54]}
{[%emt 00:00:55]} 43. Re8 {[%clk 00:01:57]} {[%emt 00:00:46]} Kxb4 {[%clk
00:02:14]} {[%emt 00:01:11]} 44. Re7 {[%clk 00:02:21]} {[%emt 00:00:05]} Kc5
{[%clk 00:02:25]} {[%emt 00:00:20]} 45. Rxf7 {[%clk 00:02:48]} {[%emt
00:00:03]} g5 {[%clk 00:02:39]} {[%emt 00:00:16]} 46. Rh7 {[%clk 00:02:09]}
{[%emt 00:01:07]} h4 {[%clk 00:02:57]} {[%emt 00:00:13]} 47. Ke3 {[%clk
00:01:55]} {[%emt 00:00:44]} Kd6 {[%clk 00:03:20]} {[%emt 00:00:08]} 48. Rh6
{[%clk 00:01:49]} {[%emt 00:00:34]} Ke5 {[%clk 00:03:43]} {[%emt 00:00:09]} 49.
Rh7 {[%clk 00:02:05]} {[%emt 00:00:14]} c5 {[%clk 00:04:09]} {[%emt 00:00:05]}
50. Kd3 {[%clk 00:02:00]} {[%emt 00:00:34]} Nf4+ {[%clk 00:02:42]} {[%emt
00:01:57]} 51. Ke3 {[%clk 00:02:25]} {[%emt 00:00:05]} c4 {[%clk 00:02:10]}
{[%emt 00:01:02]} 52. Rg7 {[%clk 00:02:33]} {[%emt 00:00:22]} Ne6 {[%clk
00:01:58]} {[%emt 00:00:42]} 53. Rh7 {[%clk 00:02:51]} {[%emt 00:00:12]} d4+
{[%clk 00:02:09]} {[%emt 00:00:19]} 54. Kd2 {[%clk 00:03:18]} {[%emt 00:00:02]}
Kd6 {[%clk 00:01:53]} {[%emt 00:00:47]} 55. Rh6 {[%clk 00:03:37]} {[%emt
00:00:10]} Kd5 {[%clk 00:02:16]} {[%emt 00:00:07]} 56. Rh7 {[%clk 00:03:29]}
{[%emt 00:00:38]} c3+ {[%clk 00:02:40]} {[%emt 00:00:07]} 57. Kc2 {[%clk
00:03:33]} {[%emt 00:00:23]} Kc4 {[%clk 00:02:20]} {[%emt 00:00:52]} 58. Rh6
{[%clk 00:01:39]} {[%emt 00:02:23]} d3+ {[%clk 00:02:41]} {[%emt 00:00:10]} 59.
Kd1 {[%clk 00:01:55]} {[%emt 00:00:14]} Nd4 {[%clk 00:02:58]} {[%emt 00:00:14]}
60. Rh8 {[%clk 00:01:48]} {[%emt 00:00:38]} c2+ {[%clk 00:03:17]} {[%emt
00:00:11]} 61. Kc1 {[%clk 00:01:43]} {[%emt 00:00:34]} Nb3+ {[%clk 00:03:26]}
{[%emt 00:00:21]} 62. Kb2 {[%clk 00:02:09]} {[%emt 00:00:05]} c1=Q+ {[%clk
00:03:48]} {[%emt 00:00:07]} 63. Ka2 {[%clk 00:02:34]} {[%emt 00:00:05]} Qa1#
{[%emt 00:00:13]} 0-1

[Event "Elite Hotels Open 2023"]
[Site "Elite Stadshotellet, Kungsgatan 6, Vaxjo, Sweden"]
[Date "2023.02.12"]
[Round "7.16"]
[White "Sevastianov, Andrii"]
[Black "Berg, Roy"]
[Result "1-0"]
[TimeControl "15 minutes + 5 seconds per move from move one (Round 1 - 4) / 90 minutes + 30 seconds per move from move one (Round 5 - 8)"]
[WhiteFideId "1730240"]
[BlackFideId "1711458"]
[WhiteElo "2160"]
[BlackElo "1948"]

1. e4 {[%clk 01:30:53]} {[%emt 00:00:05]} c6 {[%clk 01:30:51]} {[%emt
00:00:10]} 2. d4 {[%clk 01:31:10]} {[%emt 00:00:12]} d5 {[%clk 01:31:17]}
{[%emt 00:00:06]} 3. exd5 {[%clk 01:31:27]} {[%emt 00:00:13]} cxd5 {[%clk
01:31:40]} {[%emt 00:00:08]} 4. Bd3 {[%clk 01:31:43]} {[%emt 00:00:12]} Nc6
{[%clk 01:31:59]} {[%emt 00:00:12]} 5. c3 {[%clk 01:31:54]} {[%emt 00:00:18]}
Nf6 {[%clk 01:32:22]} {[%emt 00:00:08]} 6. h3 {[%clk 01:32:08]} {[%emt
00:00:15]} e5 {[%clk 01:32:16]} {[%emt 00:00:37]} 7. dxe5 {[%clk 01:31:55]}
{[%emt 00:00:42]} Nxe5 {[%clk 01:32:38]} {[%emt 00:00:08]} 8. Nf3 {[%clk
01:31:51]} {[%emt 00:00:33]} Nxd3+ {[%clk 01:27:35]} {[%emt 00:05:35]} 9. Qxd3
{[%clk 01:31:53]} {[%emt 00:00:28]} Be7 {[%clk 01:27:24]} {[%emt 00:00:40]} 10.
O-O {[%clk 01:29:56]} {[%emt 00:02:26]} O-O {[%clk 01:27:43]} {[%emt 00:00:13]}
11. Be3 {[%clk 01:25:53]} {[%emt 00:04:31]} Re8 {[%clk 01:17:42]} {[%emt
00:10:33]} 12. Nbd2 {[%clk 01:25:39]} {[%emt 00:00:43]} b6 {[%clk 01:14:52]}
{[%emt 00:03:22]} 13. Rfe1 {[%clk 01:21:23]} {[%emt 00:04:44]} Bb7 {[%clk
01:09:38]} {[%emt 00:05:46]} 14. Bg5 {[%clk 01:19:50]} {[%emt 00:02:01]} Ne4
{[%clk 00:57:06]} {[%emt 00:13:03]} 15. Bxe7 {[%clk 01:17:39]} {[%emt
00:02:40]} Qxe7 {[%clk 00:54:58]} {[%emt 00:02:39]} 16. Nf1 {[%clk 01:13:52]}
{[%emt 00:04:16]} Qf6 {[%clk 00:51:43]} {[%emt 00:03:46]} 17. Rad1 {[%clk
01:05:16]} {[%emt 00:09:04]} Rad8 {[%clk 00:44:24]} {[%emt 00:07:52]} 18. Qc2
{[%clk 00:59:11]} {[%emt 00:06:33]} h5 {[%clk 00:39:39]} {[%emt 00:05:15]} 19.
Nd4 {[%clk 00:49:03]} {[%emt 00:10:38]} a6 {[%clk 00:33:17]} {[%emt 00:06:53]}
20. Re3 {[%clk 00:44:57]} {[%emt 00:04:33]} Ng5 {[%clk 00:24:49]} {[%emt
00:08:59]} 21. Qe2 {[%clk 00:41:31]} {[%emt 00:03:54]} Rxe3 {[%clk 00:23:57]}
{[%emt 00:01:26]} 22. Qxe3 {[%clk 00:41:15]} {[%emt 00:00:45]} Ne6 {[%clk
00:19:52]} {[%emt 00:04:35]} 23. Nxe6 {[%clk 00:39:04]} {[%emt 00:02:39]} Qxe6
{[%clk 00:20:05]} {[%emt 00:00:18]} 24. Qd4 {[%clk 00:37:45]} {[%emt 00:01:48]}
b5 {[%clk 00:17:10]} {[%emt 00:03:25]} 25. a3 {[%clk 00:34:09]} {[%emt
00:04:06]} g6 {[%clk 00:11:34]} {[%emt 00:06:07]} 26. Ne3 {[%clk 00:34:10]}
{[%emt 00:00:29]} Kh7 {[%clk 00:11:44]} {[%emt 00:00:21]} 27. Qf4 {[%clk
00:29:06]} {[%emt 00:05:33]} Rd7 {[%clk 00:11:11]} {[%emt 00:01:04]} 28. Rd4
{[%clk 00:29:17]} {[%emt 00:00:18]} Kg7 {[%clk 00:11:20]} {[%emt 00:00:22]} 29.
Qf3 {[%clk 00:29:11]} {[%emt 00:00:36]} Qe5 {[%clk 00:10:03]} {[%emt 00:01:47]}
30. Qd1 {[%clk 00:29:01]} {[%emt 00:00:39]} Qe6 {[%clk 00:09:16]} {[%emt
00:01:19]} 31. a4 {[%clk 00:28:54]} {[%emt 00:00:37]} Bc6 {[%clk 00:09:16]}
{[%emt 00:00:30]} 32. axb5 {[%clk 00:29:05]} {[%emt 00:00:19]} axb5 {[%clk
00:09:05]} {[%emt 00:00:42]} 33. Qb3 {[%clk 00:26:53]} {[%emt 00:02:42]} Ra7
{[%clk 00:06:57]} {[%emt 00:02:38]} 34. Qd1 {[%clk 00:26:27]} {[%emt 00:00:56]}
Rd7 {[%clk 00:07:24]} {[%emt 00:00:03]} 35. Rd2 {[%clk 00:26:33]} {[%emt
00:00:23]} Qe4 {[%clk 00:07:14]} {[%emt 00:00:42]} 36. Nc2 {[%clk 00:23:19]}
{[%emt 00:03:41]} Re7 {[%clk 00:05:35]} {[%emt 00:02:10]} 37. Nd4 {[%clk
00:22:27]} {[%emt 00:01:23]} Be8 {[%clk 00:05:42]} {[%emt 00:00:23]} 38. Re2
{[%clk 00:21:27]} {[%emt 00:01:29]} Qh4 {[%clk 00:05:10]} {[%emt 00:01:03]} 39.
Qe1 {[%clk 00:21:50]} {[%emt 00:00:06]} Re4 {[%clk 00:05:06]} {[%emt 00:00:35]}
40. Rxe4 {[%clk 00:17:26]} {[%emt 00:04:53]} Qxe4 {[%clk 00:05:30]} {[%emt
00:00:06]} 41. Qe2 {[%clk 00:17:03]} {[%emt 00:00:54]} Qxe2 {[%clk 00:05:38]}
{[%emt 00:00:23]} 42. Nxe2 {[%clk 00:17:23]} {[%emt 00:00:08]} Kf6 {[%clk
00:05:57]} {[%emt 00:00:11]} 43. f3 {[%clk 00:17:36]} {[%emt 00:00:17]} Ke5
{[%clk 00:06:04]} {[%emt 00:00:23]} 44. Kf2 {[%clk 00:17:58]} {[%emt 00:00:08]}
b4 {[%clk 00:04:39]} {[%emt 00:01:56]} 45. Ke3 {[%clk 00:14:15]} {[%emt
00:04:12]} bxc3 {[%clk 00:05:00]} {[%emt 00:00:10]} 46. f4+ {[%clk 00:14:35]}
{[%emt 00:00:09]} Kd6 {[%clk 00:05:11]} {[%emt 00:00:19]} 47. bxc3 {[%clk
00:14:00]} {[%emt 00:01:05]} Bb5 {[%clk 00:04:44]} {[%emt 00:00:57]} 48. Nd4
{[%clk 00:11:40]} {[%emt 00:02:49]} Bf1 {[%clk 00:04:33]} {[%emt 00:00:42]} 49.
Kf2 {[%clk 00:12:01]} {[%emt 00:00:09]} Bd3 {[%clk 00:04:46]} {[%emt 00:00:17]}
50. g4 {[%clk 00:11:09]} {[%emt 00:01:22]} hxg4 {[%clk 00:05:04]} {[%emt
00:00:13]} 51. hxg4 {[%clk 00:11:32]} {[%emt 00:00:07]} Kc5 {[%clk 00:05:09]}
{[%emt 00:00:24]} 52. Ke3 {[%clk 00:11:50]} {[%emt 00:00:13]} Bc4 {[%clk
00:03:58]} {[%emt 00:01:42]} 53. g5 {[%clk 00:11:51]} {[%emt 00:00:27]} Kd6
{[%clk 00:03:49]} {[%emt 00:00:40]} 54. Nf3 {[%clk 00:11:27]} {[%emt 00:00:53]}
Ba2 {[%clk 00:03:26]} {[%emt 00:00:54]} 55. Ne5 {[%clk 00:07:39]} {[%emt
00:04:16]} Ke6 {[%clk 00:03:29]} {[%emt 00:00:28]} 56. Nc6 {[%clk 00:08:04]}
{[%emt 00:00:05]} Kd6 {[%clk 00:03:41]} {[%emt 00:00:18]} 57. Nb4 {[%clk
00:08:02]} {[%emt 00:00:32]} Bb3 {[%clk 00:03:44]} {[%emt 00:00:27]} 58. Kd4
{[%clk 00:08:26]} {[%emt 00:00:06]} Bc4 {[%clk 00:03:31]} {[%emt 00:00:43]} 59.
Nc2 {[%clk 00:08:29]} {[%emt 00:00:27]} Bb3 {[%clk 00:03:19]} {[%emt 00:00:40]}
60. Ne3 {[%clk 00:08:53]} {[%emt 00:00:07]} Ke6 {[%clk 00:03:02]} {[%emt
00:00:48]} 61. Kc5 {[%clk 00:08:27]} {[%emt 00:00:55]} Ba2 {[%clk 00:03:05]}
{[%emt 00:00:27]} 62. Nc2 {[%clk 00:05:47]} {[%emt 00:03:10]} Bc4 {[%clk
00:03:08]} {[%emt 00:00:27]} 63. Nd4+ {[%clk 00:06:05]} {[%emt 00:00:13]} Kd7
{[%clk 00:03:02]} {[%emt 00:00:35]} 64. Nc6 {[%clk 00:02:20]} {[%emt 00:04:15]}
Ba2 {[%clk 00:03:03]} {[%emt 00:00:28]} 65. Nb4 {[%clk 00:02:26]} {[%emt
00:00:25]} Bb3 {[%clk 00:03:06]} {[%emt 00:00:26]} 66. Nxd5 {[%clk 00:02:46]}
{[%emt 00:00:11]} Ke6 {[%clk 00:02:31]} {[%emt 00:01:05]} 67. Ne3 {[%clk
00:02:56]} {[%emt 00:00:20]} f6 {[%clk 00:02:43]} {[%emt 00:00:19]} 68. Kd4
{[%clk 00:02:36]} {[%emt 00:00:50]} fxg5 {[%clk 00:02:10]} {[%emt 00:01:04]} 69.
fxg5 {[%clk 00:02:59]} {[%emt 00:00:05]} Ba2 {[%clk 00:02:06]} {[%emt
00:00:34]} 70. Ke4 {[%clk 00:03:10]} {[%emt 00:00:19]} Bb1+ {[%clk 00:02:21]}
{[%emt 00:00:15]} 71. Kf4 {[%clk 00:03:32]} {[%emt 00:00:08]} Bd3 {[%clk
00:02:15]} {[%emt 00:00:36]} 72. Ng4 {[%clk 00:03:15]} {[%emt 00:00:48]} Kd5
{[%clk 00:02:13]} {[%emt 00:00:32]} 73. Ne5 {[%clk 00:03:26]} {[%emt 00:00:18]}
Bf5 {[%clk 00:02:30]} {[%emt 00:00:14]} 74. Nf7 {[%clk 00:02:24]} {[%emt
00:01:31]} Bb1 {[%clk 00:02:32]} {[%emt 00:00:29]} 75. Nd8 {[%clk 00:02:22]}
{[%emt 00:00:31]} Kc4 {[%clk 00:02:46]} {[%emt 00:00:17]} 76. Ke5 {[%clk
00:02:46]} {[%emt 00:00:05]} Kxc3 {[%clk 00:02:56]} {[%emt 00:00:21]} 77. Kf6
{[%clk 00:03:10]} {[%emt 00:00:05]} Kd4 {[%clk 00:03:01]} {[%emt 00:00:26]} 78.
Ne6+ {[%clk 00:03:30]} {[%emt 00:00:09]} Ke3 {[%clk 00:02:53]} {[%emt
00:00:36]} 79. Nf8 {[%clk 00:03:47]} {[%emt 00:00:16]} Kf4 {[%clk 00:03:00]}
{[%emt 00:00:21]} 80. Nxg6+ {[%clk 00:04:11]} {[%emt 00:00:07]} Kg4 {[%clk
00:03:04]} {[%emt 00:00:25]} 81. Ne5+ {[%clk 00:04:18]} {[%emt 00:00:24]} Kh5
{[%clk 00:03:16]} {[%emt 00:00:17]} 82. Nf3 {[%clk 00:03:59]} {[%emt 00:00:50]}
Kg4 {[%clk 00:03:13]} {[%emt 00:00:34]} 83. Nd4 {[%clk 00:04:18]} {[%emt
00:00:10]} Bh7 {[%clk 00:03:18]} {[%emt 00:00:25]} 84. Nc6 {[%clk 00:04:31]}
{[%emt 00:00:16]} Kh5 {[%clk 00:03:33]} {[%emt 00:00:15]} 85. Ne7 {[%clk
00:04:24]} {[%emt 00:00:38]} Kg4 {[%clk 00:03:46]} {[%emt 00:00:18]} 86. Ng6
{[%clk 00:04:44]} {[%emt 00:00:09]} Bg8 {[%clk 00:04:00]} {[%emt 00:00:16]} 87.
Ne5+ {[%clk 00:05:05]} {[%emt 00:00:09]} Kh5 {[%clk 00:03:39]} {[%emt
00:00:50]} 88. g6 {[%clk 00:05:28]} {[%emt 00:00:09]} Kh6 {[%clk 00:03:46]}
{[%emt 00:00:21]} 89. Nf7 {[%clk 00:05:26]} {[%emt 00:00:33]} Kh5 {[%clk
00:03:05]} {[%emt 00:01:12]} 90. Kg7 {[%clk 00:05:40]} {[%emt 00:00:15]} 1-0

[Event "Elite Hotels Open 2023"]
[Site "Elite Stadshotellet, Kungsgatan 6, Vaxjo, Sweden"]
[Date "2023.02.12"]
[Round "7.17"]
[White "Lindholm, Gustav"]
[Black "Nilsson, Oliver"]
[Result "1-0"]
[TimeControl "15 minutes + 5 seconds per move from move one (Round 1 - 4) / 90 minutes + 30 seconds per move from move one (Round 5 - 8)"]
[WhiteFideId "1736515"]
[BlackFideId "1730177"]
[WhiteElo "2128"]
[BlackElo "1925"]

1. d4 {[%clk 01:30:58]} {[%emt 00:00:02]} d5 {[%clk 01:30:43]} {[%emt
00:00:19]} 2. c4 {[%clk 01:31:22]} {[%emt 00:00:05]} e6 {[%clk 01:31:10]}
{[%emt 00:00:02]} 3. Nc3 {[%clk 01:31:44]} {[%emt 00:00:08]} a6 {[%clk
01:31:37]} {[%emt 00:00:04]} 4. Nf3 {[%clk 01:31:58]} {[%emt 00:00:15]} dxc4
{[%clk 01:31:27]} {[%emt 00:00:40]} 5. a4 {[%clk 01:32:06]} {[%emt 00:00:22]}
Nc6 {[%clk 01:31:52]} {[%emt 00:00:05]} 6. e3 {[%clk 01:32:05]} {[%emt
00:00:31]} Na5 {[%clk 01:32:17]} {[%emt 00:00:05]} 7. Nd2 {[%clk 01:27:51]}
{[%emt 00:04:44]} c5 {[%clk 01:31:54]} {[%emt 00:00:49]} 8. Nxc4 {[%clk
01:26:34]} {[%emt 00:01:52]} Nf6 {[%clk 01:31:55]} {[%emt 00:00:29]} 9. Be2
{[%clk 01:23:33]} {[%emt 00:03:31]} Nxc4 {[%clk 01:32:19]} {[%emt 00:00:06]} 10.
Bxc4 {[%clk 01:24:00]} {[%emt 00:00:03]} cxd4 {[%clk 01:25:58]} {[%emt
00:06:52]} 11. exd4 {[%clk 01:24:08]} {[%emt 00:00:21]} Bb4 {[%clk 01:25:27]}
{[%emt 00:01:01]} 12. O-O {[%clk 01:23:52]} {[%emt 00:00:45]} Qc7 {[%clk
01:23:47]} {[%emt 00:02:11]} 13. Qb3 {[%clk 01:19:45]} {[%emt 00:04:36]} Bd6
{[%clk 01:22:17]} {[%emt 00:02:00]} 14. h3 {[%clk 01:16:41]} {[%emt 00:03:35]}
O-O {[%clk 01:21:50]} {[%emt 00:00:57]} 15. Be3 {[%clk 01:13:16]} {[%emt
00:03:54]} Bd7 {[%clk 01:04:27]} {[%emt 00:17:52]} 16. Rac1 {[%clk 01:10:38]}
{[%emt 00:03:08]} Rac8 {[%clk 01:02:23]} {[%emt 00:02:35]} 17. Be2 {[%clk
01:10:08]} {[%emt 00:00:59]} Bc6 {[%clk 00:58:40]} {[%emt 00:04:15]} 18. Rfd1
{[%clk 01:07:05]} {[%emt 00:03:32]} Qb8 {[%clk 00:55:23]} {[%emt 00:03:48]} 19.
Bc4 {[%clk 01:00:38]} {[%emt 00:06:56]} Rfd8 {[%clk 00:33:31]} {[%emt
00:22:22]} 20. Bg5 {[%clk 00:55:19]} {[%emt 00:05:49]} Be7 {[%clk 00:32:13]}
{[%emt 00:01:49]} 21. Bh4 {[%clk 00:34:11]} {[%emt 00:21:37]} Qa7 {[%clk
00:20:11]} {[%emt 00:12:32]} 22. Bg3 {[%clk 00:23:53]} {[%emt 00:10:48]} Kh8
{[%clk 00:12:45]} {[%emt 00:07:56]} 23. Be5 {[%clk 00:21:40]} {[%emt 00:02:42]}
Nd7 {[%clk 00:11:09]} {[%emt 00:02:09]} 24. Bf4 {[%clk 00:16:46]} {[%emt
00:05:23]} Nb6 {[%clk 00:10:54]} {[%emt 00:00:45]} 25. Be2 {[%clk 00:16:24]}
{[%emt 00:00:51]} Nxa4 {[%clk 00:09:22]} {[%emt 00:02:03]} 26. Nxa4 {[%clk
00:15:26]} {[%emt 00:01:29]} Rxd4 {[%clk 00:01:17]} {[%emt 00:08:36]} 27. Be3
{[%clk 00:14:35]} {[%emt 00:01:20]} Rcd8 {[%clk 00:00:40]} {[%emt 00:01:07]} 28.
Bxd4 {[%clk 00:14:07]} {[%emt 00:00:58]} Rxd4 {[%clk 00:01:08]} {[%emt
00:00:03]} 29. Nb6 {[%clk 00:12:58]} {[%emt 00:01:39]} 1-0

[Event "Elite Hotels Open 2023"]
[Site "Elite Stadshotellet, Kungsgatan 6, Vaxjo, Sweden"]
[Date "2023.02.12"]
[Round "7.18"]
[White "Frisk, Hans"]
[Black "Eriksson, Christian Altenburg"]
[Result "0-1"]
[TimeControl "15 minutes + 5 seconds per move from move one (Round 1 - 4) / 90 minutes + 30 seconds per move from move one (Round 5 - 8)"]
[WhiteFideId "1708570"]
[BlackFideId "1412159"]
[WhiteElo "1905"]
[BlackElo "2104"]

1. Nf3 {[%clk 01:30:53]} {[%emt 00:00:06]} d5 {[%clk 01:30:42]} {[%emt
00:00:20]} 2. e3 {[%clk 01:31:05]} {[%emt 00:00:17]} Nf6 {[%clk 01:30:21]}
{[%emt 00:00:51]} 3. c4 {[%clk 01:31:21]} {[%emt 00:00:13]} dxc4 {[%clk
01:26:50]} {[%emt 00:04:02]} 4. Bxc4 {[%clk 01:31:19]} {[%emt 00:00:32]} e6
{[%clk 01:27:03]} {[%emt 00:00:17]} 5. O-O {[%clk 01:29:49]} {[%emt 00:01:59]}
c5 {[%clk 01:26:08]} {[%emt 00:01:26]} 6. Nc3 {[%clk 01:28:10]} {[%emt
00:02:10]} a6 {[%clk 01:25:33]} {[%emt 00:01:05]} 7. a4 {[%clk 01:24:09]}
{[%emt 00:04:31]} Nc6 {[%clk 01:24:50]} {[%emt 00:01:12]} 8. Qe2 {[%clk
01:23:58]} {[%emt 00:00:43]} Qc7 {[%clk 01:23:45]} {[%emt 00:01:35]} 9. Rd1
{[%clk 01:19:36]} {[%emt 00:04:51]} Bd6 {[%clk 01:20:51]} {[%emt 00:03:24]} 10.
d4 {[%clk 01:14:33]} {[%emt 00:05:33]} O-O {[%clk 01:20:04]} {[%emt 00:01:17]}
11. d5 {[%clk 01:06:42]} {[%emt 00:08:22]} exd5 {[%clk 01:19:30]} {[%emt
00:01:04]} 12. Nxd5 {[%clk 01:06:19]} {[%emt 00:00:51]} Nxd5 {[%clk 01:19:13]}
{[%emt 00:00:48]} 13. Bxd5 {[%clk 01:05:12]} {[%emt 00:01:36]} Nb4 {[%clk
01:13:39]} {[%emt 00:06:04]} 14. e4 {[%clk 00:52:58]} {[%emt 00:12:44]} Nxd5
{[%clk 01:05:16]} {[%emt 00:08:55]} 15. exd5 {[%clk 00:49:31]} {[%emt
00:03:56]} Bg4 {[%clk 01:04:05]} {[%emt 00:01:40]} 16. h3 {[%clk 00:47:53]}
{[%emt 00:02:08]} Rfe8 {[%clk 00:59:21]} {[%emt 00:05:14]} 17. Be3 {[%clk
00:43:46]} {[%emt 00:04:36]} Bh5 {[%clk 00:58:49]} {[%emt 00:01:04]} 18. g4
{[%clk 00:35:14]} {[%emt 00:09:02]} Bg6 {[%clk 00:58:53]} {[%emt 00:00:27]} 19.
a5 {[%clk 00:30:56]} {[%emt 00:04:48]} Rac8 {[%clk 00:54:34]} {[%emt 00:04:48]}
20. Ra4 {[%clk 00:28:38]} {[%emt 00:02:49]} Qd7 {[%clk 00:50:35]} {[%emt
00:04:28]} 21. b3 {[%clk 00:26:36]} {[%emt 00:02:31]} Qb5 {[%clk 00:46:12]}
{[%emt 00:04:54]} 22. Qb2 {[%clk 00:22:07]} {[%emt 00:04:59]} c4 {[%clk
00:38:12]} {[%emt 00:08:31]} 23. Nd4 {[%clk 00:19:05]} {[%emt 00:03:31]} Qxd5
{[%clk 00:36:36]} {[%emt 00:02:07]} 24. bxc4 {[%clk 00:19:19]} {[%emt
00:00:15]} Qe5 {[%clk 00:32:58]} {[%emt 00:04:09]} 25. Kf1 {[%clk 00:18:32]}
{[%emt 00:01:16]} Qh2 {[%clk 00:31:44]} {[%emt 00:01:44]} 26. Nf5 {[%clk
00:17:07]} {[%emt 00:01:55]} Qxh3+ {[%clk 00:29:55]} {[%emt 00:02:20]} 27. Ke1
{[%clk 00:16:57]} {[%emt 00:00:39]} Be5 {[%clk 00:28:50]} {[%emt 00:01:35]} 28.
Nd4 {[%clk 00:14:29]} {[%emt 00:02:58]} Qxg4 {[%clk 00:25:33]} {[%emt
00:03:47]} 29. Qxb7 {[%clk 00:11:47]} {[%emt 00:03:12]} Bxd4 {[%clk 00:24:32]}
{[%emt 00:01:31]} 30. c5 {[%clk 00:09:36]} {[%emt 00:02:40]} Bc3+ {[%clk
00:24:08]} {[%emt 00:00:54]} 0-1